[Event "Late-Titled-Tuesday-Blitz-July-09-2024"]
[Site "Chess.com"]
[Date "2024.07.09"]
[Round "3"]
[White "Vladimir_Zakhartsov"]
[Black "Zorbos"]
[Result "1-0"]
[WhiteElo "2899"]
[BlackElo "2681"]
[TimeControl "180+1"]
[EndTime "14:28:45 PDT"]
[Termination "Vladimir_Zakhartsov won by checkmate"]

1. d4 {[%clk 0:02:57.4]} 1... Nf6 {[%clk 0:02:59.8]} 2. c4 {[%clk 0:02:56.5]}
2... g6 {[%clk 0:02:57.8]} 3. Nc3 {[%clk 0:02:49.6]} 3... Bg7 {[%clk 0:02:57.4]}
4. e4 {[%clk 0:02:49.8]} 4... d6 {[%clk 0:02:57.8]} 5. h3 {[%clk 0:02:50.1]}
5... O-O {[%clk 0:02:56.8]} 6. Be3 {[%clk 0:02:50.7]} 6... e5 {[%clk 0:02:50]}
7. d5 {[%clk 0:02:49.6]} 7... a5 {[%clk 0:02:50.1]} 8. g4 {[%clk 0:02:48.1]}
8... Na6 {[%clk 0:02:48.9]} 9. Nge2 {[%clk 0:02:48.4]} 9... Nd7 {[%clk
0:02:48.9]} 10. Ng3 {[%clk 0:02:42.4]} 10... Qh4 {[%clk 0:02:43.1]} 11. Qd2
{[%clk 0:02:40.8]} 11... h6 {[%clk 0:02:43.6]} 12. Nce2 {[%clk 0:02:26.9]} 12...
Nac5 {[%clk 0:02:39.1]} 13. g5 {[%clk 0:02:24.5]} 13... Nxe4 {[%clk 0:02:32.8]}
14. Nxe4 {[%clk 0:02:24.1]} 14... Qxe4 {[%clk 0:02:33.7]} 15. Ng3 {[%clk
0:02:00.6]} 15... Qh4 {[%clk 0:02:33.6]} 16. gxh6 {[%clk 0:01:56.4]} 16... Bh8
{[%clk 0:02:25.8]} 17. Rg1 {[%clk 0:01:46.8]} 17... Nc5 {[%clk 0:02:20.8]} 18.
O-O-O {[%clk 0:01:45.2]} 18... f5 {[%clk 0:02:11]} 19. Bg5 {[%clk 0:01:35.2]}
19... Qd4 {[%clk 0:02:09.3]} 20. Qc2 {[%clk 0:01:28.7]} 20... Nb3+ {[%clk
0:01:53.6]} 21. axb3 {[%clk 0:01:21.5]} 21... Qb6 {[%clk 0:01:54.1]} 22. Be3
{[%clk 0:01:00.7]} 22... Qb4 {[%clk 0:01:51.5]} 23. Ne2 {[%clk 0:00:54.5]} 23...
Kh7 {[%clk 0:01:49]} 24. Bd2 {[%clk 0:00:53.1]} 24... Qb6 {[%clk 0:01:49.1]} 25.
Be3 {[%clk 0:00:52.5]} 25... Qb4 {[%clk 0:01:49.5]} 26. Nc3 {[%clk 0:00:53]}
26... a4 {[%clk 0:01:36.1]} 27. bxa4 {[%clk 0:00:50.5]} 27... Bd7 {[%clk
0:01:32.5]} 28. Bd2 {[%clk 0:00:42.9]} 28... Qb6 {[%clk 0:01:31.6]} 29. Rg2
{[%clk 0:00:35.7]} 29... e4 {[%clk 0:01:25.7]} 30. Be2 {[%clk 0:00:35.3]} 30...
Rg8 {[%clk 0:01:18]} 31. Be3 {[%clk 0:00:34.1]} 31... Qb4 {[%clk 0:01:17]} 32.
Bd4 {[%clk 0:00:34.3]} 32... Be5 {[%clk 0:01:17.2]} 33. Bxe5 {[%clk 0:00:32.4]}
33... dxe5 {[%clk 0:01:18.1]} 34. b3 {[%clk 0:00:31.8]} 34... Qb6 {[%clk
0:01:11.6]} 35. h4 {[%clk 0:00:29.8]} 35... Qf6 {[%clk 0:00:46.5]} 36. d6 {[%clk
0:00:28.4]} 36... cxd6 {[%clk 0:00:44.9]} 37. Qd2 {[%clk 0:00:26.8]} 37... Ra6
{[%clk 0:00:22.6]} 38. Rg5 {[%clk 0:00:26.4]} 38... Rb6 {[%clk 0:00:22]} 39. Nd5
{[%clk 0:00:26.4]} 39... Qd8 {[%clk 0:00:17.5]} 40. Nxb6 {[%clk 0:00:26.2]}
40... Qxb6 {[%clk 0:00:18.4]} 41. Kc2 {[%clk 0:00:17.7]} 41... Qxf2 {[%clk
0:00:15.2]} 42. Qxd6 {[%clk 0:00:16.2]} 42... Qxe2+ {[%clk 0:00:15.1]} 43. Rd2
{[%clk 0:00:16.4]} 43... Qf1 {[%clk 0:00:11.3]} 44. Qxd7+ {[%clk 0:00:16.5]}
44... Kxh6 {[%clk 0:00:11.9]} 45. Rdg2 {[%clk 0:00:12.9]} 45... Qa1 {[%clk
0:00:09.3]} 46. Rh5+ {[%clk 0:00:11]} 46... gxh5 {[%clk 0:00:05.4]} 47. Qe6+
{[%clk 0:00:11.6]} 47... Kh7 {[%clk 0:00:05.8]} 48. Qxg8+ {[%clk 0:00:12.1]}
48... Kh6 {[%clk 0:00:05.9]} 49. Qg6# {[%clk 0:00:12.7]} 1-0

[Event "Late-Titled-Tuesday-Blitz-July-09-2024"]
[Site "Chess.com"]
[Date "2024.07.09"]
[Round "3"]
[White "APOKALIPSA13"]
[Black "Good_Knight_Kiss"]
[Result "0-1"]
[WhiteElo "2110"]
[BlackElo "2385"]
[TimeControl "180+1"]
[EndTime "14:28:45 PDT"]
[Termination "Good_Knight_Kiss won by resignation"]

1. e4 {[%clk 0:02:59.1]} 1... c5 {[%clk 0:02:59.8]} 2. Nf3 {[%clk 0:02:58.5]}
2... d6 {[%clk 0:03:00.2]} 3. d4 {[%clk 0:02:58.6]} 3... cxd4 {[%clk 0:03:01.1]}
4. Nxd4 {[%clk 0:02:59.1]} 4... Nf6 {[%clk 0:03:01.3]} 5. Nc3 {[%clk 0:02:59.6]}
5... a6 {[%clk 0:03:01.7]} 6. Rg1 {[%clk 0:02:59]} 6... e5 {[%clk 0:03:01.2]} 7.
Nb3 {[%clk 0:02:59]} 7... h5 {[%clk 0:03:01.5]} 8. h3 {[%clk 0:02:59]} 8... Be6
{[%clk 0:03:00.6]} 9. g4 {[%clk 0:02:58.9]} 9... hxg4 {[%clk 0:02:57.6]} 10.
hxg4 {[%clk 0:02:59.8]} 10... d5 {[%clk 0:02:56.6]} 11. exd5 {[%clk 0:02:59.8]}
11... Nxd5 {[%clk 0:02:56.3]} 12. Bg2 {[%clk 0:02:52.9]} 12... Nxc3 {[%clk
0:02:51.5]} 13. Qxd8+ {[%clk 0:02:52.3]} 13... Kxd8 {[%clk 0:02:50.9]} 14. bxc3
{[%clk 0:02:52.7]} 14... Kc7 {[%clk 0:02:47.1]} 15. Be3 {[%clk 0:02:42.3]} 15...
Nd7 {[%clk 0:02:42.5]} 16. O-O-O {[%clk 0:02:36.6]} 16... Bxg4 {[%clk
0:02:11.4]} 17. Bxb7 {[%clk 0:02:32.1]} 17... Ba3+ {[%clk 0:02:10.7]} 18. Kb1
{[%clk 0:02:30.3]} 18... Bxd1 {[%clk 0:02:07.8]} 19. Bxa8 {[%clk 0:02:27.3]}
19... Rxa8 {[%clk 0:01:54.7]} 20. Rxd1 {[%clk 0:02:26.2]} 20... f5 {[%clk
0:01:53.7]} 21. f4 {[%clk 0:02:24.3]} 21... Bd6 {[%clk 0:01:29.1]} 22. Rg1
{[%clk 0:01:59.9]} 22... exf4 {[%clk 0:01:23.9]} 23. Bf2 {[%clk 0:01:59.5]}
23... Rg8 {[%clk 0:01:20]} 24. Nd4 {[%clk 0:01:52.7]} 24... Be5 {[%clk
0:01:07.7]} 25. Nxf5 {[%clk 0:01:49.1]} 25... g5 {[%clk 0:00:48.1]} 26. Nh6
{[%clk 0:01:17.1]} 26... Rg6 {[%clk 0:00:46.2]} 27. Nf7 {[%clk 0:01:16]} 27...
Bf6 {[%clk 0:00:33.2]} 28. Rg4 {[%clk 0:01:12.7]} 28... Ne5 {[%clk 0:00:32.2]}
29. Nxe5 {[%clk 0:01:07.3]} 29... Bxe5 {[%clk 0:00:33.1]} 30. Kb2 {[%clk
0:01:06.8]} 30... Kd6 {[%clk 0:00:29.5]} 31. Kb3 {[%clk 0:01:06.1]} 31... Kd5
{[%clk 0:00:24.1]} 32. c4+ {[%clk 0:01:03.3]} 32... Ke4 {[%clk 0:00:24.2]} 33.
Rg1 {[%clk 0:00:37.5]} 33... g4 {[%clk 0:00:24.2]} 34. Re1+ {[%clk 0:00:27.4]}
34... Kf5 {[%clk 0:00:19.5]} 35. c5 {[%clk 0:00:23.1]} 35... g3 {[%clk
0:00:18.4]} 36. Bg1 {[%clk 0:00:21.8]} 36... f3 {[%clk 0:00:18.4]} 37. Rf1
{[%clk 0:00:21.7]} 37... Kg4 {[%clk 0:00:13.3]} 38. Kc4 {[%clk 0:00:21.2]} 38...
g2 {[%clk 0:00:09.6]} 39. Rd1 {[%clk 0:00:19.6]} 39... Bg3 {[%clk 0:00:07.8]}
40. Kd5 {[%clk 0:00:17.6]} 40... f2 {[%clk 0:00:07.5]} 41. Bxf2 {[%clk
0:00:17.5]} 41... Bxf2 {[%clk 0:00:07.8]} 42. c6 {[%clk 0:00:17.7]} 42... g1=Q
{[%clk 0:00:07.4]} 43. Rxg1+ {[%clk 0:00:17.4]} 43... Bxg1 {[%clk 0:00:08.3]}
44. c7 {[%clk 0:00:17.5]} 44... Rg8 {[%clk 0:00:08.4]} 45. Kc6 {[%clk 0:00:16]}
45... Bh2 {[%clk 0:00:07.6]} 46. Kd7 {[%clk 0:00:15.6]} 46... Rg7+ {[%clk
0:00:06.5]} 0-1

[Event "Late-Titled-Tuesday-Blitz-July-09-2024"]
[Site "Chess.com"]
[Date "2024.07.09"]
[Round "3"]
[White "PushingpawnsNYC"]
[Black "BogdanDeac"]
[Result "0-1"]
[WhiteElo "2504"]
[BlackElo "2959"]
[TimeControl "180+1"]
[EndTime "14:28:46 PDT"]
[Termination "BogdanDeac won on time"]

1. e4 {[%clk 0:02:53.2]} 1... c5 {[%clk 0:02:59.3]} 2. Nc3 {[%clk 0:02:53.2]}
2... d6 {[%clk 0:02:59.2]} 3. Bb5+ {[%clk 0:02:52.8]} 3... Bd7 {[%clk
0:02:58.3]} 4. a4 {[%clk 0:02:53]} 4... Nc6 {[%clk 0:02:50]} 5. f4 {[%clk
0:02:46.8]} 5... g6 {[%clk 0:02:47.3]} 6. Nf3 {[%clk 0:02:36.5]} 6... Bg7 {[%clk
0:02:47.8]} 7. d3 {[%clk 0:02:24.7]} 7... e6 {[%clk 0:02:47.6]} 8. O-O {[%clk
0:02:24.8]} 8... Nge7 {[%clk 0:02:47]} 9. Bd2 {[%clk 0:02:21.7]} 9... a6 {[%clk
0:02:44.9]} 10. Bc4 {[%clk 0:02:21]} 10... O-O {[%clk 0:02:43.9]} 11. Qe1 {[%clk
0:02:20.8]} 11... Nb4 {[%clk 0:02:40.3]} 12. Rc1 {[%clk 0:02:17.8]} 12... Nec6
{[%clk 0:02:38.1]} 13. Bb3 {[%clk 0:01:53.3]} 13... Na5 {[%clk 0:02:35.9]} 14.
Bc4 {[%clk 0:01:42.2]} 14... Rb8 {[%clk 0:02:33.6]} 15. f5 {[%clk 0:01:36.9]}
15... b5 {[%clk 0:02:31]} 16. fxe6 {[%clk 0:01:35.6]} 16... fxe6 {[%clk
0:02:28.3]} 17. axb5 {[%clk 0:01:33.5]} 17... axb5 {[%clk 0:02:27.8]} 18. Ba2
{[%clk 0:01:31.9]} 18... Nxa2 {[%clk 0:02:22.1]} 19. Nxa2 {[%clk 0:01:30.8]}
19... Nc6 {[%clk 0:02:22.7]} 20. Nc3 {[%clk 0:01:29.3]} 20... b4 {[%clk
0:02:19.5]} 21. Nd1 {[%clk 0:01:28.4]} 21... Ra8 {[%clk 0:02:17.8]} 22. c3
{[%clk 0:01:27.5]} 22... bxc3 {[%clk 0:02:17.5]} 23. bxc3 {[%clk 0:01:25.9]}
23... Bc8 {[%clk 0:02:01.1]} 24. Ne3 {[%clk 0:01:24.9]} 24... Ba6 {[%clk
0:02:01.1]} 25. c4 {[%clk 0:01:17.8]} 25... Bc8 {[%clk 0:02:00.6]} 26. Ng4
{[%clk 0:01:14.6]} 26... e5 {[%clk 0:01:50.3]} 27. Bg5 {[%clk 0:01:10.7]} 27...
Qe8 {[%clk 0:01:43.9]} 28. Qh4 {[%clk 0:01:08.1]} 28... Bxg4 {[%clk 0:01:42.3]}
29. Qxg4 {[%clk 0:01:08.2]} 29... Ra3 {[%clk 0:01:39.7]} 30. Rcd1 {[%clk
0:01:06.2]} 30... Nb4 {[%clk 0:01:37.4]} 31. Ne1 {[%clk 0:00:57.3]} 31... Rxf1+
{[%clk 0:01:33.1]} 32. Kxf1 {[%clk 0:00:57.8]} 32... Ra2 {[%clk 0:01:33.4]} 33.
Bd2 {[%clk 0:00:50.1]} 33... Nc6 {[%clk 0:01:30.5]} 34. Be3 {[%clk 0:00:48.6]}
34... h5 {[%clk 0:01:27]} 35. Qh3 {[%clk 0:00:43.7]} 35... Nb4 {[%clk
0:01:25.1]} 36. Kg1 {[%clk 0:00:38.8]} 36... Ra3 {[%clk 0:01:22.9]} 37. Bf2
{[%clk 0:00:37.2]} 37... Bh6 {[%clk 0:01:19]} 38. Qg3 {[%clk 0:00:28.7]} 38...
Kh7 {[%clk 0:01:17.5]} 39. h4 {[%clk 0:00:28.2]} 39... Qd7 {[%clk 0:01:12.2]}
40. Qf3 {[%clk 0:00:27.8]} 40... Kg7 {[%clk 0:01:09.8]} 41. Be3 {[%clk 0:00:27]}
41... Bxe3+ {[%clk 0:00:59.1]} 42. Qxe3 {[%clk 0:00:26.9]} 42... Qg4 {[%clk
0:00:59.6]} 43. Nf3 {[%clk 0:00:26.2]} 43... Qg3 {[%clk 0:00:59.4]} 44. Qf2
{[%clk 0:00:23.5]} 44... Qxf2+ {[%clk 0:00:54.8]} 45. Kxf2 {[%clk 0:00:23.5]}
45... Nxd3+ {[%clk 0:00:55.4]} 46. Kg3 {[%clk 0:00:23.5]} 46... Kf6 {[%clk
0:00:51.1]} 47. Rd2 {[%clk 0:00:21.5]} 47... Ke7 {[%clk 0:00:50.5]} 48. Kh2
{[%clk 0:00:14.2]} 48... Rc3 {[%clk 0:00:45.6]} 49. Ra2 {[%clk 0:00:10.5]} 49...
Rxc4 {[%clk 0:00:45.3]} 50. Ra7+ {[%clk 0:00:11.1]} 50... Kd8 {[%clk 0:00:45.6]}
51. Rg7 {[%clk 0:00:10.8]} 51... Nf4 {[%clk 0:00:39.2]} 52. Ng5 {[%clk
0:00:10.7]} 52... Rc2 {[%clk 0:00:33]} 53. Kh1 {[%clk 0:00:07.1]} 53... c4
{[%clk 0:00:28.6]} 54. Nf7+ {[%clk 0:00:06.6]} 54... Ke7 {[%clk 0:00:28.4]} 55.
Nxe5+ {[%clk 0:00:05.3]} 55... Kf6 {[%clk 0:00:28.2]} 0-1

[Event "Late-Titled-Tuesday-Blitz-July-09-2024"]
[Site "Chess.com"]
[Date "2024.07.09"]
[Round "3"]
[White "TheMagician"]
[Black "falzehope0"]
[Result "0-1"]
[WhiteElo "2108"]
[BlackElo "2465"]
[TimeControl "180+1"]
[EndTime "14:28:47 PDT"]
[Termination "falzehope0 won on time"]

1. c4 {[%clk 0:02:53.8]} 1... e6 {[%clk 0:02:55.1]} 2. Nc3 {[%clk 0:02:51.4]}
2... d5 {[%clk 0:02:55.4]} 3. d4 {[%clk 0:02:49.6]} 3... f5 {[%clk 0:02:53.4]}
4. cxd5 {[%clk 0:02:44.9]} 4... exd5 {[%clk 0:02:53.1]} 5. Bf4 {[%clk 0:02:44]}
5... Nf6 {[%clk 0:02:47.3]} 6. a3 {[%clk 0:02:29.4]} 6... Be7 {[%clk 0:02:44.5]}
7. e3 {[%clk 0:02:28.9]} 7... O-O {[%clk 0:02:44.1]} 8. Rc1 {[%clk 0:02:23.5]}
8... c6 {[%clk 0:02:44]} 9. Bd3 {[%clk 0:02:16.7]} 9... Ne4 {[%clk 0:02:38.4]}
10. Nge2 {[%clk 0:02:07.8]} 10... Nd7 {[%clk 0:02:31.1]} 11. f3 {[%clk
0:02:01.1]} 11... Ng5 {[%clk 0:02:28.7]} 12. O-O {[%clk 0:01:45.7]} 12... Qe8
{[%clk 0:02:20.9]} 13. Qd2 {[%clk 0:01:44.4]} 13... Ne6 {[%clk 0:01:57.5]} 14.
Bg3 {[%clk 0:01:41.7]} 14... Bg5 {[%clk 0:01:55.7]} 15. f4 {[%clk 0:01:32]}
15... Bh6 {[%clk 0:01:51.7]} 16. Kh1 {[%clk 0:01:30.9]} 16... g6 {[%clk
0:01:48.4]} 17. Ng1 {[%clk 0:01:30]} 17... Nf6 {[%clk 0:01:41.9]} 18. Nf3 {[%clk
0:01:20.8]} 18... Ne4 {[%clk 0:01:41.7]} 19. Bxe4 {[%clk 0:01:15.5]} 19... fxe4
{[%clk 0:01:42.6]} 20. Ne5 {[%clk 0:01:14]} 20... Ng7 {[%clk 0:01:41.9]} 21. Bf2
{[%clk 0:01:03.7]} 21... Qe7 {[%clk 0:01:34.1]} 22. b4 {[%clk 0:00:53.5]} 22...
a6 {[%clk 0:01:33.5]} 23. Na4 {[%clk 0:00:52.7]} 23... Be6 {[%clk 0:01:27.6]}
24. Nc5 {[%clk 0:00:50]} 24... Rae8 {[%clk 0:01:24.1]} 25. a4 {[%clk 0:00:41.9]}
25... Bc8 {[%clk 0:01:16.9]} 26. b5 {[%clk 0:00:41.8]} 26... axb5 {[%clk
0:01:15.6]} 27. axb5 {[%clk 0:00:40.9]} 27... cxb5 {[%clk 0:00:58.8]} 28. Qa2
{[%clk 0:00:39.7]} 28... Be6 {[%clk 0:00:55.6]} 29. Qa5 {[%clk 0:00:32.2]} 29...
Nf5 {[%clk 0:00:49.9]} 30. Qxb5 {[%clk 0:00:26.8]} 30... Nd6 {[%clk 0:00:45.9]}
31. Qb6 {[%clk 0:00:21.4]} 31... Bg7 {[%clk 0:00:41.3]} 32. Nxe6 {[%clk
0:00:16.8]} 32... Qxe6 {[%clk 0:00:40.1]} 33. Rc7 {[%clk 0:00:15.7]} 33... Bxe5
{[%clk 0:00:26.1]} 34. dxe5 {[%clk 0:00:12.5]} 34... Nf7 {[%clk 0:00:15.1]} 35.
Qxb7 {[%clk 0:00:07.9]} 35... Rb8 {[%clk 0:00:14.9]} 36. Qc6 {[%clk 0:00:05.1]}
36... Qxc6 {[%clk 0:00:13.4]} 37. Rxc6 {[%clk 0:00:04.5]} 37... Rb2 {[%clk
0:00:14]} 38. e6 {[%clk 0:00:02.1]} 38... Nh6 {[%clk 0:00:07.2]} 39. h3 {[%clk
0:00:02.2]} 39... Nf5 {[%clk 0:00:06.8]} 0-1

[Event "Late-Titled-Tuesday-Blitz-July-09-2024"]
[Site "Chess.com"]
[Date "2024.07.09"]
[Round "3"]
[White "Byniolus"]
[Black "andrejljepic"]
[Result "1-0"]
[WhiteElo "2812"]
[BlackElo "2465"]
[TimeControl "180+1"]
[EndTime "14:28:48 PDT"]
[Termination "Byniolus won by resignation"]

1. d4 {[%clk 0:03:00.9]} 1... Nf6 {[%clk 0:02:57.6]} 2. Nf3 {[%clk 0:03:01.1]}
2... b6 {[%clk 0:02:57.8]} 3. Bf4 {[%clk 0:03:01.2]} 3... Bb7 {[%clk 0:02:58.1]}
4. e3 {[%clk 0:03:01.8]} 4... e6 {[%clk 0:02:58]} 5. h3 {[%clk 0:03:00.6]} 5...
Bd6 {[%clk 0:02:54.8]} 6. Bxd6 {[%clk 0:03:00.1]} 6... cxd6 {[%clk 0:02:54.9]}
7. Nbd2 {[%clk 0:03:00.7]} 7... O-O {[%clk 0:02:52.8]} 8. Be2 {[%clk 0:02:59.7]}
8... Ne4 {[%clk 0:02:47.1]} 9. O-O {[%clk 0:02:58.2]} 9... Nxd2 {[%clk
0:02:46.1]} 10. Nxd2 {[%clk 0:02:58.5]} 10... Nc6 {[%clk 0:02:44.8]} 11. c4
{[%clk 0:02:57.1]} 11... Ne7 {[%clk 0:02:43.8]} 12. Qa4 {[%clk 0:02:55]} 12...
Qc7 {[%clk 0:02:43.6]} 13. Rfc1 {[%clk 0:02:53.8]} 13... Rfc8 {[%clk 0:02:41.9]}
14. Rc3 {[%clk 0:02:50.4]} 14... Qc6 {[%clk 0:02:41.8]} 15. Qxc6 {[%clk
0:02:47]} 15... dxc6 {[%clk 0:02:41.6]} 16. c5 {[%clk 0:02:40.5]} 16... d5
{[%clk 0:02:30.3]} 17. a4 {[%clk 0:02:30]} 17... Rcb8 {[%clk 0:02:20.5]} 18. b4
{[%clk 0:02:28.9]} 18... bxc5 {[%clk 0:02:14.2]} 19. Rxc5 {[%clk 0:01:55.7]}
19... Bc8 {[%clk 0:02:14.3]} 20. b5 {[%clk 0:01:43.5]} 20... Bd7 {[%clk
0:02:13.6]} 21. Rac1 {[%clk 0:01:21.8]} 21... Rc8 {[%clk 0:02:05.3]} 22. Nb3
{[%clk 0:01:14.5]} 22... Kf8 {[%clk 0:02:05.1]} 23. Na5 {[%clk 0:01:07.5]} 23...
cxb5 {[%clk 0:02:01.8]} 24. axb5 {[%clk 0:01:08.4]} 24... Ke8 {[%clk 0:01:57.2]}
25. Kf1 {[%clk 0:01:04.6]} 25... Rab8 {[%clk 0:01:53.4]} 26. Ke1 {[%clk
0:00:59.6]} 26... Kd8 {[%clk 0:01:51.2]} 27. Kd2 {[%clk 0:00:52.4]} 27... Rb6
{[%clk 0:01:43.5]} 28. Bd3 {[%clk 0:00:44.5]} 28... h6 {[%clk 0:01:36.7]} 29. f3
{[%clk 0:00:42.2]} 29... Rbb8 {[%clk 0:01:22.8]} 30. e4 {[%clk 0:00:39.1]} 30...
Rb6 {[%clk 0:01:22.3]} 31. h4 {[%clk 0:00:37.4]} 31... Rbb8 {[%clk 0:01:21.3]}
32. g4 {[%clk 0:00:26.7]} 32... Rxc5 {[%clk 0:01:19]} 33. Rxc5 {[%clk
0:00:21.8]} 33... Rb6 {[%clk 0:01:18.8]} 34. g5 {[%clk 0:00:21.1]} 34... hxg5
{[%clk 0:01:11.8]} 35. hxg5 {[%clk 0:00:22]} 35... g6 {[%clk 0:01:08.5]} 36. Ke3
{[%clk 0:00:21]} 36... Bc8 {[%clk 0:01:06.8]} 37. Kf4 {[%clk 0:00:20]} 37... a6
{[%clk 0:01:06.7]} 38. bxa6 {[%clk 0:00:14.3]} 38... Bxa6 {[%clk 0:01:06.3]} 39.
Bxa6 {[%clk 0:00:15.2]} 39... Rxa6 {[%clk 0:01:06.2]} 40. Rb5 {[%clk 0:00:06.7]}
40... Kc7 {[%clk 0:01:04.2]} 41. Rb7+ {[%clk 0:00:05.5]} 41... Kd8 {[%clk
0:01:00.2]} 42. Nb3 {[%clk 0:00:04.8]} 42... dxe4 {[%clk 0:00:54]} 43. fxe4
{[%clk 0:00:04.7]} 43... Ke8 {[%clk 0:00:41.9]} 44. Rb8+ {[%clk 0:00:03]} 44...
Nc8 {[%clk 0:00:35.2]} 45. Rxc8+ {[%clk 0:00:03.1]} 45... Kd7 {[%clk 0:00:35.4]}
46. Nc5+ {[%clk 0:00:02.8]} 46... Kxc8 {[%clk 0:00:36.1]} 47. Nxa6 {[%clk
0:00:03.7]} 47... Kd7 {[%clk 0:00:35.6]} 48. Ke5 {[%clk 0:00:03.8]} 48... Ke7
{[%clk 0:00:36.5]} 49. Nb4 {[%clk 0:00:04]} 49... Kf8 {[%clk 0:00:36.5]} 50. Kf6
{[%clk 0:00:03.4]} 50... Kg8 {[%clk 0:00:36.9]} 51. Nc6 {[%clk 0:00:03.7]} 51...
Kh8 {[%clk 0:00:37]} 52. Ne5 {[%clk 0:00:03.8]} 52... Kh7 {[%clk 0:00:35.6]} 53.
Nxf7 {[%clk 0:00:04.7]} 53... Kg8 {[%clk 0:00:35.7]} 54. Kxg6 {[%clk 0:00:04.8]}
54... e5 {[%clk 0:00:35.1]} 55. Nxe5 {[%clk 0:00:04.8]} 55... Kf8 {[%clk
0:00:35.1]} 56. Kf6 {[%clk 0:00:05.4]} 56... Kg8 {[%clk 0:00:35.5]} 57. g6
{[%clk 0:00:05.7]} 57... Kf8 {[%clk 0:00:33.3]} 58. g7+ {[%clk 0:00:06.3]} 58...
Kg8 {[%clk 0:00:34]} 59. d5 {[%clk 0:00:06.3]} 1-0

[Event "Late-Titled-Tuesday-Blitz-July-09-2024"]
[Site "Chess.com"]
[Date "2024.07.09"]
[Round "3"]
[White "10n0l20"]
[Black "K_A_S_T_O_R"]
[Result "0-1"]
[WhiteElo "2494"]
[BlackElo "2843"]
[TimeControl "180+1"]
[EndTime "14:28:49 PDT"]
[Termination "K_A_S_T_O_R won by resignation"]

1. Nf3 {[%clk 0:02:50.4]} 1... c5 {[%clk 0:02:59.2]} 2. c4 {[%clk 0:02:49.6]}
2... Nf6 {[%clk 0:02:58.7]} 3. Nc3 {[%clk 0:02:50.1]} 3... e6 {[%clk 0:02:59.1]}
4. d3 {[%clk 0:02:47.8]} 4... d5 {[%clk 0:02:58.3]} 5. cxd5 {[%clk 0:02:48.5]}
5... exd5 {[%clk 0:02:58.8]} 6. Bg5 {[%clk 0:02:48.8]} 6... d4 {[%clk
0:02:55.7]} 7. Ne4 {[%clk 0:02:48.1]} 7... Be7 {[%clk 0:02:56]} 8. Nxf6+ {[%clk
0:02:45.2]} 8... Bxf6 {[%clk 0:02:53.9]} 9. Bxf6 {[%clk 0:02:45.7]} 9... Qxf6
{[%clk 0:02:54.3]} 10. g3 {[%clk 0:02:46.4]} 10... O-O {[%clk 0:02:50.2]} 11.
Bg2 {[%clk 0:02:46.9]} 11... Nc6 {[%clk 0:02:49.1]} 12. O-O {[%clk 0:02:44.3]}
12... Be6 {[%clk 0:02:43.8]} 13. Rc1 {[%clk 0:02:39.1]} 13... b6 {[%clk
0:02:43.2]} 14. Ng5 {[%clk 0:02:31.4]} 14... Bd7 {[%clk 0:02:34.5]} 15. Ne4
{[%clk 0:02:30.1]} 15... Qe7 {[%clk 0:02:34.7]} 16. a3 {[%clk 0:02:27.4]} 16...
a5 {[%clk 0:02:34]} 17. Nd2 {[%clk 0:02:14.6]} 17... a4 {[%clk 0:02:27.7]} 18.
Nc4 {[%clk 0:02:13.6]} 18... Ra6 {[%clk 0:02:17.7]} 19. Re1 {[%clk 0:02:12.5]}
19... b5 {[%clk 0:02:14.3]} 20. Nd2 {[%clk 0:02:12.2]} 20... Na5 {[%clk
0:02:14.3]} 21. e3 {[%clk 0:02:08.3]} 21... dxe3 {[%clk 0:02:10.8]} 22. Rxe3
{[%clk 0:02:08.7]} 22... Be6 {[%clk 0:02:10.5]} 23. Qh5 {[%clk 0:02:00.3]} 23...
Rc8 {[%clk 0:02:06.8]} 24. d4 {[%clk 0:01:56.8]} 24... g6 {[%clk 0:01:44.3]} 25.
Qe5 {[%clk 0:01:45.8]} 25... f6 {[%clk 0:01:41.8]} 26. Qf4 {[%clk 0:01:22]}
26... Qd8 {[%clk 0:01:32.7]} 27. Ne4 {[%clk 0:01:15.8]} 27... Nc4 {[%clk
0:01:24.2]} 28. Nxc5 {[%clk 0:00:54.1]} 28... Nxe3 {[%clk 0:01:02.6]} 29. Qxe3
{[%clk 0:00:55]} 29... Rb6 {[%clk 0:00:49.7]} 30. d5 {[%clk 0:00:19.6]} 30...
Bf7 {[%clk 0:00:42.6]} 31. Rc3 {[%clk 0:00:19]} 31... b4 {[%clk 0:00:38]} 32.
axb4 {[%clk 0:00:18.4]} 32... Rxb4 {[%clk 0:00:38.5]} 33. Qd2 {[%clk 0:00:11.5]}
33... Rcb8 {[%clk 0:00:29.2]} 34. d6 {[%clk 0:00:10.5]} 34... Rxb2 {[%clk
0:00:28.8]} 35. Qf4 {[%clk 0:00:06.2]} 35... Rb1+ {[%clk 0:00:29.1]} 36. Bf1
{[%clk 0:00:05.4]} 36... Rd1 {[%clk 0:00:24.1]} 37. Ne4 {[%clk 0:00:01.7]} 37...
Rbb1 {[%clk 0:00:23.2]} 38. Nxf6+ {[%clk 0:00:02.3]} 38... Kg7 {[%clk
0:00:23.3]} 39. Ng4 {[%clk 0:00:02.7]} 39... Rxf1+ {[%clk 0:00:22.4]} 40. Kg2
{[%clk 0:00:03.4]} 40... Rg1+ {[%clk 0:00:15.9]} 41. Kh3 {[%clk 0:00:04]} 41...
Qd7 {[%clk 0:00:02.9]} 42. Qf6+ {[%clk 0:00:02.1]} 42... Kg8 {[%clk 0:00:03.3]}
43. Rc7 {[%clk 0:00:01.4]} 43... Qe6 {[%clk 0:00:03.7]} 44. Qxe6 {[%clk
0:00:01]} 44... Bxe6 {[%clk 0:00:04.1]} 45. d7 {[%clk 0:00:01.6]} 45... Bxd7
{[%clk 0:00:04.4]} 46. Rc8+ {[%clk 0:00:02.5]} 46... Bxc8 {[%clk 0:00:03.6]} 0-1